bitfinex/quotes_BTCUSD_20250109
["timestamp","ask_amount","ask_price","bid_price","bid_amount"]
[1736390199217,0.211503,94561.0,94537.0,0.15]
[1736390199427,0.211517,94555.0,94540.0,0.15299753]
[1736390199627,0.211517,94555.0,94541.0,0.10535734]
[1736390199828,0.00723574,94554.0,94541.0,0.10535734]
[1736390199977,0.00723574,94554.0,94548.0,0.211532]
[1736390200193,8.52e-05,94563.0,94551.0,0.0462]
[1736390200345,8.52e-05,94563.0,94562.0,0.384501]
[1736390200550,0.00058666,94563.0,94562.0,0.48880076]
[1736390200748,0.00058666,94563.0,94562.0,0.57140076]
[1736390202054,0.00058666,94563.0,94562.0,0.57540076]
[1736390202261,0.00058666,94563.0,94562.0,0.59059141]
[1736390202469,0.00058666,94563.0,94562.0,0.60098278]
[1736390202668,0.00058666,94563.0,94562.0,0.60598278]
[1736390202882,0.00058666,94563.0,94562.0,0.60098278]
[1736390203319,0.00158666,94563.0,94562.0,0.60898278]
[1736390204089,0.00158666,94563.0,94562.0,0.60498278]
[1736390204320,0.00158666,94563.0,94562.0,0.60698278]
[1736390204892,0.00158666,94563.0,94562.0,0.36789976]
[1736390205289,0.00158666,94563.0,94562.0,0.26629976]
[1736390205530,0.00058666,94563.0,94562.0,0.25829976]
[1736390205734,0.00158666,94563.0,94562.0,0.26329976]
[1736390206068,0.00058666,94563.0,94562.0,0.25829976]
[1736390206470,0.00158666,94563.0,94562.0,0.26629976]
[1736390206669,0.00058666,94563.0,94562.0,0.25829976]
[1736390207006,0.00158666,94563.0,94562.0,0.26729976]
[1736390207333,0.00058666,94563.0,94562.0,0.25829976]
[1736390207903,0.00058666,94563.0,94562.0,0.25429976]
[1736390208452,0.00058666,94563.0,94562.0,0.25829976]
[1736390208631,0.00058666,94563.0,94562.0,0.26629976]
[1736390208785,0.00158666,94563.0,94562.0,0.26229976]
[1736390209018,0.00058666,94563.0,94562.0,0.25529976]
[1736390209225,0.00058666,94563.0,94562.0,0.25729976]
[1736390210842,0.00058666,94563.0,94562.0,0.003]
[1736390211041,0.02179503,94563.0,94562.0,0.003]
[1736390211244,0.02816219,94563.0,94562.0,0.003]
[1736390211605,0.02816219,94563.0,94562.0,0.002]
[1736390212000,0.02816219,94563.0,94562.0,0.001]
[1736390212207,0.21845282,94563.0,94562.0,0.001]
[1736390213324,0.22145282,94563.0,94562.0,0.001]
[1736390213528,0.211513,94557.0,94540.0,0.08375758]
[1736390213720,0.00639902,94556.0,94542.0,0.15]
[1736390213920,0.00639902,94556.0,94544.0,0.15]
[1736390214141,0.423036,94555.0,94545.0,0.10429976]
[1736390214370,0.06732,94554.0,94545.0,0.10429976]
[1736390214792,0.211533,94548.0,94545.0,0.10429976]
[1736390215167,0.211537,94546.0,94545.0,0.10429976]
[1736390215386,0.00638028,94547.0,94545.0,0.10429976]
[1736390215571,0.211533,94548.0,94545.0,0.10429976]
[1736390215572,0.00637988,94546.0,94545.0,0.10529976]
[1736390215774,0.211533,94548.0,94545.0,0.10529976]
[1736390215775,0.423066,94548.0,94545.0,0.001]
[1736390215974,0.00637948,94546.0,94545.0,0.001]
[1736390216255,0.211537,94546.0,94545.0,0.001]
[1736390216442,0.21991346,94546.0,94545.0,0.001]
[1736390216915,0.211571,94531.0,94513.0,0.00105788]
[1736390217091,0.06732,94530.0,94515.0,0.15]
[1736390217302,0.211575,94529.0,94516.0,0.10429976]
[1736390217748,0.00635936,94528.0,94516.0,0.10429976]
[1736390218525,0.06732,94530.0,94516.0,0.10429976]
[1736390218680,0.06732,94530.0,94516.0,0.11029976]
[1736390218884,0.211577,94528.0,94516.0,0.11029976]
[1736390219094,0.211577,94528.0,94516.0,0.10729976]
[1736390219293,0.00633497,94527.0,94516.0,0.11329976]
[1736390219489,0.211581,94526.0,94516.0,0.11329976]
[1736390219888,0.00633858,94525.0,94516.0,0.10729976]
[1736390220332,0.06732,94530.0,94516.0,0.10729976]
[1736390220588,0.211558,94537.0,94516.0,0.10729976]
[1736390220589,0.21155,94541.0,94520.0,0.22864968]
[1736390220788,0.06732,94545.0,94530.0,0.22864968]
[1736390220905,0.06732,94545.0,94531.0,0.10429976]
[1736390221104,0.02440115,94562.0,94531.0,0.12529974]
[1736390221105,0.21153,94549.0,94531.0,0.12529974]
[1736390221301,0.07351506,94548.0,94533.0,0.0493]
[1736390221608,0.07351506,94548.0,94534.0,0.10535745]
[1736390221802,0.211535,94547.0,94534.0,0.10429976]
[1736390222021,0.001,94545.0,94534.0,0.10429976]
[1736390222377,0.42927866,94544.0,94534.0,0.10429976]
[1736390222522,0.21773766,94544.0,94534.0,0.10429976]
[1736390222979,0.06732,94543.0,94534.0,0.10429976]
[1736390223140,0.07351426,94543.0,94534.0,0.10429976]
[1736390223342,0.211546,94542.0,94534.0,0.10429976]
[1736390223740,0.00619386,94541.0,94534.0,0.10429976]
[1736390223960,0.21155,94540.0,94534.0,0.10429976]
[1736390224235,0.21774346,94540.0,94534.0,0.10429976]
[1736390224603,0.21774346,94540.0,94534.0,0.10529976]
[1736390225042,0.211561,94536.0,94534.0,0.10529976]
[1736390225248,0.211561,94536.0,94524.0,0.0827]
[1736390225446,0.0061635,94535.0,94525.0,0.10429976]
[1736390225604,0.0061635,94535.0,94534.0,0.001]
[1736390225800,0.0061635,94535.0,94534.0,0.10629976]
[1736390226111,0.0239,94557.0,94534.0,0.10629976]
[1736390226112,0.06732,94546.0,94534.0,0.10529976]
[1736390226322,0.00616209,94545.0,94537.0,0.0797]
[1736390226526,0.211505,94560.0,94538.0,0.10535743]
[1736390226727,0.06732,94552.0,94541.0,0.0463]
[1736390226924,0.06732,94552.0,94542.0,0.16385086]
[1736390227103,0.06732,94552.0,94542.0,0.10429976]
[1736390227104,0.00617447,94551.0,94542.0,0.10429976]
[1736390227307,0.21770147,94551.0,94542.0,0.10429976]
[1736390227559,0.211537,94547.0,94542.0,0.10429976]
[1736390227964,0.00617171,94546.0,94542.0,0.10429976]
[1736390228175,0.06732,94552.0,94542.0,0.10429976]
[1736390228379,0.00617131,94545.0,94543.0,0.0337654]
[1736390228520,0.212527,94551.0,94544.0,0.10429976]
[1736390228727,0.003,94547.0,94544.0,0.10429976]
[1736390228927,0.00617289,94546.0,94544.0,0.10429976]
[1736390229145,0.423057,94550.0,94544.0,0.10429976]
[1736390229343,0.00617249,94545.0,94544.0,0.10429976]
[1736390230368,0.003,94547.0,94544.0,0.10429976]
[1736390230545,0.003,94547.0,94546.0,0.1027]
[1736390230745,0.003,94547.0,94546.0,0.20699976]
[1736390230945,0.003,94547.0,94546.0,0.25329976]
[1736390231202,0.003,94547.0,94546.0,0.29978454]
[1736390231407,0.003,94547.0,94546.0,0.40329976]
[1736390231854,8.52e-05,94563.0,94547.0,0.173]
[1736390232030,8.52e-05,94563.0,94551.0,0.173]
[1736390232226,8.52e-05,94563.0,94553.0,0.15]
[1736390232427,8.52e-05,94563.0,94555.0,0.15]
[1736390232624,8.52e-05,94563.0,94556.0,0.10429976]
[1736390233425,0.211503,94561.0,94556.0,0.10429976]
[1736390233587,0.42919533,94561.0,94556.0,0.10429976]
[1736390233783,0.42919533,94561.0,94546.0,0.128]
[1736390233784,0.00618833,94561.0,94546.0,0.128]
[1736390233990,0.211517,94555.0,94547.0,0.10429976]
[1736390234507,0.00619344,94554.0,94547.0,0.10429976]
[1736390235728,0.211515,94556.0,94547.0,0.10429976]
[1736390235926,0.00619424,94555.0,94547.0,0.10429976]
[1736390236127,0.211519,94554.0,94547.0,0.10429976]
[1736390236525,0.00619344,94553.0,94547.0,0.10429976]
[1736390236960,0.211523,94552.0,94547.0,0.10429976]
[1736390237278,0.00619665,94552.0,94536.0,0.0764]
[1736390237406,0.211539,94545.0,94537.0,0.10429976]
[1736390237619,0.06716,94548.0,94537.0,0.10429976]
[1736390237869,0.00618988,94544.0,94538.0,0.17567231]
[1736390238105,0.211512,94558.0,94539.0,0.10429976]
[1736390238248,0.211512,94558.0,94540.0,0.15365414]
[1736390238457,0.211512,94558.0,94541.0,0.10429976]
[1736390238458,0.00619429,94557.0,94541.0,0.10429976]
[1736390238660,0.00619429,94557.0,94542.0,0.00105758]
[1736390238853,0.00619429,94557.0,94543.0,0.10429976]
[1736390239281,0.211512,94558.0,94543.0,0.10429976]
[1736390239518,0.21152,94554.0,94543.0,0.10429976]
[1736390239893,0.00619115,94553.0,94543.0,0.10429976]
[1736390240444,0.00619075,94552.0,94544.0,0.00105759]
[1736390240641,0.002,94557.0,94545.0,0.15125005]
[1736390240841,0.00619035,94551.0,94545.0,0.10429976]
[1736390240986,0.211526,94551.0,94545.0,0.10429976]
[1736390241182,0.21153,94549.0,94545.0,0.10429976]
[1736390241398,0.423061,94549.0,94545.0,0.10429976]
[1736390241601,0.002,94557.0,94525.0,0.0763]
[1736390241602,0.21155,94541.0,94525.0,0.0763]
[1736390241816,0.211578,94528.0,94526.0,0.10429976]
[1736390242255,0.00616829,94527.0,94526.0,0.10429976]
[1736390242649,0.211555,94538.0,94526.0,0.10429976]
[1736390243028,0.211566,94533.0,94526.0,0.10429976]
[1736390243232,0.0061723,94537.0,94526.0,0.10429976]
[1736390243438,0.211579,94527.0,94526.0,0.10529976]
[1736390243646,0.211579,94527.0,94526.0,0.10429976]
[1736390243853,0.00616829,94527.0,94526.0,0.10429976]
[1736390244196,0.211559,94536.0,94526.0,0.10529976]
[1736390244403,0.00616829,94527.0,94526.0,0.10529976]
[1736390244603,0.211559,94536.0,94526.0,0.10429976]
[1736390244604,0.278719,94536.0,94526.0,0.10429976]
[1736390244864,0.00616468,94527.0,94526.0,0.10429976]
[1736390245020,0.0211559,94535.0,94526.0,0.10529976]
[1736390245221,0.00616749,94527.0,94526.0,0.10529976]
[1736390245421,0.211579,94528.0,94526.0,0.10529976]
[1736390245635,0.02732579,94527.0,94526.0,0.10529976]
[1736390245835,0.00616789,94527.0,94526.0,0.10529976]
[1736390246034,0.00616789,94527.0,94526.0,0.10429976]
[1736390247621,0.211575,94529.0,94526.0,0.10429976]
[1736390247855,0.00614529,94527.0,94526.0,0.10429976]
[1736390248032,0.06716,94530.0,94526.0,0.10429976]
[1736390248231,0.00614171,94529.0,94526.0,0.10429976]
[1736390248457,0.00614171,94529.0,94526.0,0.10529976]
[1736390249114,0.211577,94528.0,94526.0,0.10429976]
[1736390249355,0.04964487,94527.0,94526.0,0.10429976]
[1736390249523,0.05578856,94527.0,94526.0,0.10429976]
[1736390250189,0.00614369,94527.0,94526.0,0.10429976]
[1736390251732,0.00614369,94527.0,94526.0,0.10529976]
[1736390254625,0.00614369,94527.0,94526.0,0.10635776]
[1736390256874,0.42315,94529.0,94526.0,0.10635776]
[1736390257072,0.00612459,94527.0,94526.0,0.10635776]
[1736390257289,0.42315,94529.0,94526.0,0.10635776]
[1736390257290,0.211575,94529.0,94526.0,0.10635776]
[1736390257452,0.00612459,94527.0,94526.0,0.10635776]
[1736390258003,0.211575,94529.0,94526.0,0.10535776]
[1736390258226,0.00612499,94528.0,94526.0,0.10535776]
[1736390259121,0.211579,94527.0,94526.0,0.10635776]
[1736390259537,0.00612459,94527.0,94526.0,0.10535776]
[1736390259931,0.211575,94529.0,94526.0,0.10535776]
[1736390260091,0.00612383,94527.0,94526.0,0.10535776]
[1736390260297,0.211575,94529.0,94526.0,0.10535776]
[1736390260502,0.00612383,94527.0,94526.0,0.10535776]
[1736390260725,0.211575,94529.0,94526.0,0.10535776]
[1736390260921,0.00612421,94527.0,94526.0,0.10535776]
[1736390261401,0.211575,94529.0,94526.0,0.10535776]
[1736390261737,0.00602721,94527.0,94526.0,0.10535776]
[1736390261999,0.2606054,94529.0,94526.0,0.10635776]
[1736390262176,0.00602721,94527.0,94526.0,0.10635776]
[1736390262407,0.211575,94529.0,94526.0,0.10535776]
[1736390262562,0.00602799,94528.0,94526.0,0.10535776]
[1736390262757,0.00602759,94527.0,94526.0,0.10535776]
[1736390263867,0.212575,94529.0,94526.0,0.10535776]
[1736390264062,0.00602759,94527.0,94526.0,0.10635776]
[1736390264266,0.211575,94529.0,94526.0,0.10635776]
[1736390264502,0.00602759,94527.0,94526.0,0.10635776]
[1736390264689,0.211575,94529.0,94526.0,0.10635776]
[1736390264897,0.00602759,94527.0,94526.0,0.10635776]
[1736390265211,0.211575,94529.0,94526.0,0.10635776]
[1736390265366,0.00602759,94527.0,94526.0,0.10535776]
[1736390265781,0.212575,94529.0,94526.0,0.10535776]
[1736390266382,0.00586361,94528.0,94526.0,0.10535776]
[1736390266587,0.00586361,94528.0,94526.0,0.10635776]
[1736390266994,0.211579,94527.0,94526.0,0.10535776]
[1736390267190,0.00586361,94528.0,94526.0,0.10535776]
[1736390267394,0.00586321,94527.0,94526.0,0.10535776]
[1736390267597,0.211575,94529.0,94526.0,0.10535776]
[1736390268134,0.0058665,94528.0,94526.0,0.10535776]
[1736390269024,0.0058665,94528.0,94526.0,0.10635776]
[1736390269613,0.0058665,94528.0,94526.0,0.10535776]
[1736390270608,0.0729065,94528.0,94526.0,0.10535776]
[1736390271952,0.0058665,94528.0,94526.0,0.10535776]
[1736390272163,0.0058665,94528.0,94527.0,0.40335766]
[1736390272364,0.0058665,94528.0,94527.0,0.61387876]
[1736390272574,0.211527,94551.0,94529.0,0.211574]
[1736390272769,0.211527,94551.0,94530.0,0.28095402]
[1736390272989,0.00778503,94550.0,94531.0,0.21157]
[1736390273170,0.00778503,94550.0,94533.0,0.211566]
[1736390273389,0.00778503,94550.0,94534.0,0.10429976]
[1736390273736,0.00778503,94550.0,94535.0,0.288461]
[1736390273985,0.00778503,94550.0,94536.0,0.10429976]
[1736390274160,0.21153,94549.0,94536.0,0.10429976]
[1736390274660,0.00778433,94548.0,94536.0,0.10429976]
[1736390275827,0.211535,94547.0,94536.0,0.10429976]
[1736390276032,0.007783,94546.0,94536.0,0.10429976]
[1736390276475,0.007783,94546.0,94536.0,0.11470587]
[1736390276791,0.001,94548.0,94536.0,0.11470587]
[1736390277188,0.00778366,94547.0,94536.0,0.11470587]
[1736390277367,0.00778366,94547.0,94536.0,0.11570587]
[1736390277722,0.211527,94551.0,94537.0,0.05808321]
[1736390277927,0.00778236,94546.0,94540.0,0.15259656]
[1736390278125,0.06704,94562.0,94541.0,0.44230538]
[1736390278284,0.06704,94562.0,94543.0,0.211543]
[1736390278485,0.06704,94562.0,94544.0,0.10429976]
[1736390278486,0.00781389,94554.0,94544.0,0.10429976]
[1736390278689,0.00781389,94554.0,94546.0,0.077]
[1736390278914,0.00781389,94554.0,94547.0,0.10429976]
[1736390279478,0.211497,94564.0,94547.0,0.10429976]
[1736390279688,0.211485,94570.0,94549.0,0.14939976]
[1736390279888,0.211485,94570.0,94553.0,0.21152]
[1736390280249,0.211485,94570.0,94554.0,0.33685721]
[1736390280450,0.211493,94566.0,94554.0,0.33579976]
[1736390282664,0.211493,94566.0,94554.0,0.34179976]
[1736390283064,0.211493,94566.0,94554.0,0.34479976]
[1736390284143,8.52e-05,94578.0,94557.0,0.15]
[1736390284349,8.52e-05,94578.0,94567.0,0.50579]
[1736390284740,0.00023548,94568.0,94567.0,0.61008976]
[1736390286174,0.00123548,94568.0,94567.0,0.62208976]
[1736390286367,0.00123548,94568.0,94567.0,0.38759976]
[1736390286540,0.00123548,94568.0,94567.0,0.39845908]
[1736390286741,0.00123548,94568.0,94567.0,0.39445908]
[1736390286948,0.00123548,94568.0,94567.0,0.39845908]
[1736390288307,0.00123548,94568.0,94567.0,0.39445908]
[1736390288715,0.00123548,94568.0,94567.0,0.39745908]
[1736390291684,0.00123548,94568.0,94567.0,0.011]
[1736390291885,0.01317533,94568.0,94567.0,0.011]
[1736390292600,0.01317533,94568.0,94567.0,0.008]
[1736390293006,0.01617533,94568.0,94567.0,0.008]
[1736390293533,0.11617533,94568.0,94567.0,0.008]
[1736390294036,0.1,94567.0,94540.0,0.22909656]
[1736390294336,0.1,94567.0,94541.0,0.10429976]
[1736390294337,0.211526,94551.0,94541.0,0.10429976]
[1736390294574,0.06684,94550.0,94541.0,0.10429976]
[1736390294792,0.07192663,94550.0,94541.0,0.10429976]
[1736390295375,0.06684,94550.0,94541.0,0.10429976]
[1736390295552,0.00504919,94549.0,94541.0,0.10429976]
[1736390295928,0.00504919,94549.0,94541.0,0.10529976]
[1736390296118,0.00504919,94549.0,94541.0,0.10429976]
[1736390296325,0.06684,94550.0,94541.0,0.10429976]
[1736390296524,0.00504986,94548.0,94541.0,0.10529976]
[1736390296759,0.21154,94545.0,94541.0,0.10529976]
[1736390297085,0.00505116,94544.0,94541.0,0.10529976]
[1736390297293,0.00505116,94544.0,94541.0,0.10729976]
[1736390297651,0.00505116,94544.0,94541.0,0.10529976]
[1736390297834,0.00505116,94544.0,94541.0,0.10429976]
[1736390298056,0.00505116,94544.0,94541.0,0.10529976]
[1736390298345,0.211543,94543.0,94541.0,0.10529976]
[1736390298512,0.00505116,94544.0,94541.0,0.10529976]
[1736390298711,0.00505116,94544.0,94541.0,0.10429976]
[1736390298918,0.00505116,94544.0,94541.0,0.10729976]
[1736390299671,0.211533,94548.0,94541.0,0.10729976]
[1736390299875,0.00504986,94543.0,94541.0,0.10729976]
[1736390300153,0.00504983,94542.0,94541.0,0.10729976]
[1736390300619,0.211533,94548.0,94541.0,0.10529976]
[1736390300846,0.00504919,94542.0,94541.0,0.10429976]
[1736390300971,0.211533,94548.0,94541.0,0.10529976]
[1736390301170,0.00504648,94542.0,94541.0,0.10629976]
[1736390301370,0.211533,94548.0,94541.0,0.10629976]
[1736390301618,0.00504648,94542.0,94541.0,0.10929976]
[1736390301776,0.211533,94548.0,94541.0,0.10429976]
[1736390301981,0.00504648,94542.0,94541.0,0.10629976]
[1736390302179,0.211533,94548.0,94541.0,0.10829976]
[1736390302383,0.00504648,94542.0,94541.0,0.10629976]
[1736390302589,0.211543,94543.0,94541.0,0.10629976]
[1736390302787,0.00505049,94542.0,94541.0,0.10429976]
[1736390303816,0.00505049,94542.0,94541.0,0.10829976]
[1736390304010,0.00505049,94542.0,94541.0,0.10429976]
[1736390304308,0.00505049,94542.0,94541.0,0.10829976]
[1736390304692,0.05276216,94542.0,94541.0,0.10729976]
[1736390304910,0.05276216,94542.0,94541.0,0.10929976]
[1736390305736,0.05276216,94542.0,94541.0,0.10429976]
[1736390305939,0.05276216,94542.0,94541.0,0.10629976]
[1736390306192,0.00505049,94542.0,94541.0,0.002]
[1736390307329,0.00505049,94542.0,94531.0,0.075]
[1736390307559,0.211563,94535.0,94532.0,0.10429976]
[1736390307964,0.00502002,94534.0,94532.0,0.10429976]
[1736390308663,0.06684,94541.0,94532.0,0.10429976]
[1736390308863,0.06684,94541.0,94533.0,0.03919388]
[1736390309038,0.00500454,94540.0,94534.0,0.10429976]
[1736390310901,0.00500454,94540.0,94534.0,0.31586176]
[1736390311107,0.211531,94549.0,94535.0,0.1268]
[1736390311335,0.00502593,94548.0,94536.0,0.10429976]
[1736390311538,0.211535,94547.0,94536.0,0.10429976]
[1736390311741,0.00502593,94548.0,94536.0,0.10429976]
[1736390312040,0.005029,94546.0,94536.0,0.10429976]
[1736390312246,0.00502967,94547.0,94536.0,0.10429976]
[1736390312399,0.00502833,94545.0,94536.0,0.10429976]
[1736390312624,0.00502833,94545.0,94535.0,0.1268]
[1736390312625,0.00502833,94545.0,94540.0,0.1013]
[1736390312829,0.001,94547.0,94542.0,0.023]
[1736390313055,0.001,94547.0,94543.0,0.10429976]
[1736390313729,0.00503659,94546.0,94543.0,0.10429976]
[1736390314130,0.06684,94557.0,94543.0,0.10429976]
[1736390314356,0.2165576,94556.0,94543.0,0.10429976]
[1736390314557,0.003,94548.0,94543.0,0.10429976]
[1736390314721,0.2165576,94556.0,94543.0,0.10429976]
[1736390314919,0.0050436,94556.0,94543.0,0.10429976]
[1736390315173,0.002,94546.0,94543.0,0.10429976]
[1736390315380,0.211539,94545.0,94543.0,0.10429976]
[1736390315637,0.28343425,94545.0,94543.0,0.10429976]
[1736390315837,0.00505525,94545.0,94544.0,0.10429976]
[1736390316041,0.07189525,94545.0,94544.0,0.10429976]
[1736390316251,0.06684,94545.0,94544.0,0.10429976]
[1736390316487,0.07189525,94545.0,94544.0,0.10429976]
[1736390317960,0.07389525,94545.0,94544.0,0.10429976]
[1736390319644,0.423082,94544.0,94540.0,0.0783]
[1736390319793,0.423082,94544.0,94540.0,0.18259976]
[1736390319955,0.211546,94542.0,94540.0,0.18259976]
[1736390321004,0.211552,94539.0,94532.0,0.00050115]
[1736390321203,0.211566,94533.0,94532.0,0.00050115]
[1736390322527,0.211566,94533.0,94532.0,0.00350115]
[1736390322770,0.211566,94533.0,94532.0,0.00050115]
[1736390322974,0.211557,94537.0,94532.0,0.10480091]
[1736390323150,0.001,94533.0,94532.0,0.00050115]
[1736390324286,0.001,94533.0,94532.0,0.10480091]
[1736390324501,0.001,94533.0,94532.0,0.1410594]
[1736390324725,0.06668,94544.0,94532.0,0.2217594]
[1736390324873,0.002,94537.0,94534.0,0.14202526]
[1736390325078,0.06668,94544.0,94535.0,0.10429976]
[1736390325322,0.211533,94548.0,94535.0,0.10429976]
[1736390325520,0.211533,94548.0,94537.0,0.1301]
[1736390325752,0.211533,94548.0,94538.0,0.10429976]
[1736390325946,0.211523,94553.0,94538.0,0.10429976]
[1736390326148,0.211512,94558.0,94540.0,0.14202526]
[1736390326350,0.06668,94556.0,94542.0,0.0808]
[1736390326596,0.211517,94555.0,94543.0,0.10429976]
[1736390327569,0.06668,94556.0,94544.0,0.212599]
[1736390327769,0.001,94548.0,94545.0,0.10429976]
[1736390328346,0.423067,94548.0,94545.0,0.10429976]
[1736390328548,0.211533,94548.0,94545.0,0.10429976]
[1736390329110,0.214533,94548.0,94545.0,0.10429976]
[1736390329613,0.214533,94548.0,94544.0,0.001058]
[1736390329614,0.211535,94547.0,94544.0,0.001058]
[1736390329959,0.42307,94547.0,94544.0,0.001058]
[1736390331414,0.42507,94547.0,94544.0,0.001058]
[1736390331823,0.42607,94547.0,94544.0,0.001058]
[1736390332246,0.42607,94547.0,94545.0,0.18199976]
[1736390332247,0.003,94547.0,94545.0,0.18199976]
[1736390332524,0.003,94547.0,94546.0,0.0476]
[1736390332723,0.003,94547.0,94546.0,0.15189976]
[1736390333134,0.002,94547.0,94546.0,0.15189976]
[1736390333562,0.003,94547.0,94546.0,0.61313676]
[1736390334464,0.003,94547.0,94546.0,0.6461698]
[1736390334667,0.001,94547.0,94546.0,0.61313676]
[1736390334863,8.52e-05,94568.0,94554.0,0.211518]
[1736390334993,8.52e-05,94568.0,94558.0,0.14202526]
[1736390335192,8.52e-05,94568.0,94559.0,0.10429976]
[1736390335646,8.52e-05,94568.0,94560.0,0.0539143]
[1736390335846,8.52e-05,94568.0,94561.0,0.10429976]
[1736390336018,0.0030852,94568.0,94561.0,0.10429976]
[1736390336375,0.21149,94567.0,94561.0,0.10429976]
[1736390337050,0.21164028,94567.0,94561.0,0.10429976]
[1736390337733,0.42313128,94567.0,94561.0,0.10429976]
[1736390337963,0.21164028,94567.0,94561.0,0.10429976]
[1736390338396,0.00215028,94567.0,94561.0,0.10429976]
[1736390339229,0.21364128,94567.0,94561.0,0.10429976]
[1736390340610,0.2115,94563.0,94561.0,0.10429976]
[1736390341094,0.211514,94557.0,94555.0,0.0813]
[1736390341260,0.211514,94557.0,94556.0,0.10429976]
[1736390342633,0.211514,94557.0,94556.0,0.10529976]
[1736390343188,0.2538159,94557.0,94556.0,0.001]
[1736390343395,0.4204959,94557.0,94556.0,0.001]
[1736390343975,0.4204959,94557.0,94556.0,0.003]
[1736390344187,0.211541,94544.0,94533.0,0.09464214]
[1736390344414,0.211564,94534.0,94533.0,0.09464214]
[1736390344621,0.278244,94534.0,94533.0,0.09464214]
[1736390344798,0.211597,94519.0,94518.0,0.0477]
[1736390345609,0.211597,94519.0,94518.0,0.04820115]
[1736390347196,0.211576,94529.0,94518.0,0.15250091]
[1736390347397,0.06668,94530.0,94519.0,0.24632502]
[1736390347598,0.211577,94528.0,94519.0,0.10429976]
[1736390347801,0.06668,94527.0,94519.0,0.10429976]
[1736390348728,0.211544,94543.0,94522.0,0.173]
[1736390348729,0.001,94530.0,94522.0,0.173]
[1736390348924,0.001,94530.0,94523.0,0.10535757]
[1736390349142,0.211544,94543.0,94524.0,0.211586]
[1736390349360,0.211548,94541.0,94526.0,0.211581]
[1736390349576,0.0634621,94542.0,94530.0,0.14202526]
[1736390349777,0.06668,94543.0,94531.0,0.10429976]
[1736390349987,0.211546,94542.0,94531.0,0.10429976]
[1736390351979,0.212546,94542.0,94531.0,0.10429976]
[1736390352404,0.427093,94542.0,94531.0,0.10429976]
[1736390352912,0.424093,94542.0,94531.0,0.10429976]
[1736390353128,0.49556383,94542.0,94531.0,0.10429976]
[1736390354746,0.49556383,94542.0,94534.0,0.023]
[1736390354747,0.004,94542.0,94534.0,0.023]
[1736390354941,0.004,94542.0,94535.0,0.10429976]
[1736390355547,0.003,94542.0,94535.0,0.10429976]
[1736390355913,0.004,94542.0,94535.0,0.10429976]
[1736390356063,0.21155,94540.0,94535.0,0.10429976]
[1736390357516,0.06652,94541.0,94535.0,0.10429976]
[1736390358511,0.003,94540.0,94535.0,0.10429976]
[1736390358909,0.001,94540.0,94535.0,0.10429976]
[1736390359330,0.06952,94541.0,94535.0,0.10429976]
[1736390359563,0.06652,94541.0,94535.0,0.10429976]
[1736390359766,0.002,94540.0,94536.0,0.211559]
[1736390360031,0.002,94540.0,94537.0,0.10429976]
[1736390360491,0.002,94540.0,94538.0,0.257955]
[1736390360775,0.002,94540.0,94539.0,0.10429976]
[1736390361284,0.001,94540.0,94539.0,0.10429976]
[1736390361698,0.001,94540.0,94539.0,0.35805743]
[1736390361905,8.52e-05,94578.0,94561.0,0.1283]
[1736390362109,0.211472,94575.0,94551.0,0.0797]
[1736390362312,0.06652,94576.0,94556.0,0.211513]
[1736390362486,0.211475,94574.0,94557.0,0.10429976]
[1736390362624,8.52e-05,94578.0,94560.0,0.15]
[1736390362835,8.52e-05,94578.0,94567.0,0.21149]
[1736390363041,0.00023548,94568.0,94567.0,0.31578976]
[1736390363658,0.00023548,94568.0,94567.0,0.10429976]
[1736390364523,0.00623548,94568.0,94567.0,0.10429976]
[1736390364713,0.00223548,94568.0,94567.0,0.10429976]
[1736390368829,0.00030172,94568.0,94567.0,0.10429976]
[1736390370081,0.21178972,94568.0,94567.0,0.10429976]
[1736390371068,0.211503,94561.0,94551.0,0.0753]
[1736390371273,0.00030172,94568.0,94551.0,0.0753]
[1736390371274,0.00030172,94568.0,94564.0,0.211495]
[1736390371602,0.00030172,94568.0,94565.0,0.17959976]
[1736390371937,0.2115512,94578.0,94565.0,0.17959976]
[1736390372146,0.422969,94570.0,94565.0,0.10429976]
[1736390373002,0.001,94568.0,94565.0,0.10429976]
[1736390373238,0.21149,94567.0,94560.0,0.14194949]
[1736390373442,0.001,94568.0,94558.0,0.0753]
[1736390373639,0.211503,94562.0,94559.0,0.10429976]
[1736390374970,0.211503,94562.0,94559.0,0.10529976]
[1736390375637,0.211503,94562.0,94559.0,0.10629976]
[1736390376410,0.211503,94562.0,94559.0,0.10529976]
[1736390376959,0.211503,94562.0,94559.0,0.10429976]
[1736390377853,0.422934,94577.0,94561.0,0.211503]
[1736390378055,0.00013526,94578.0,94567.0,0.14194949]
[1736390378259,0.21160126,94578.0,94568.0,0.10429976]
[1736390378813,0.211475,94574.0,94568.0,0.10429976]
[1736390379416,0.211484,94570.0,94568.0,0.10429976]
[1736390379765,0.06652,94569.0,94560.0,0.14192933]
[1736390379966,0.06652,94569.0,94561.0,0.10429976]
[1736390381120,0.211476,94573.0,94561.0,0.10429976]
[1736390381365,0.211481,94571.0,94561.0,0.10429976]
[1736390381680,0.001,94569.0,94561.0,0.10429976]
[1736390382124,0.211485,94569.0,94561.0,0.10429976]
[1736390382348,0.213485,94569.0,94561.0,0.10429976]
[1736390382728,0.213485,94569.0,94550.0,0.14192933]
[1736390382729,0.002,94569.0,94568.0,0.234488]
[1736390382930,0.002,94569.0,94568.0,0.18299976]
[1736390383139,0.002,94569.0,94568.0,0.22717934]
[1736390383590,0.211461,94580.0,94568.0,0.22717934]
[1736390383781,0.211461,94580.0,94569.0,0.10429976]
[1736390384537,0.211467,94577.0,94569.0,0.10429976]
[1736390386431,0.216467,94577.0,94569.0,0.10429976]
[1736390386917,0.005,94577.0,94569.0,0.10429976]
[1736390387161,0.005,94577.0,94570.0,0.211483]
[1736390387390,0.007,94577.0,94572.0,0.211479]
[1736390387588,0.007,94577.0,94573.0,0.10535707]
[1736390387790,0.007,94577.0,94574.0,0.422948]
[1736390388120,0.005,94577.0,94576.0,0.21147]
[1736390388245,0.007,94577.0,94576.0,0.10429976]
[1736390388667,0.002,94577.0,94576.0,0.10429976]
[1736390388845,0.00013526,94578.0,94576.0,0.10429976]
[1736390389053,0.00013526,94578.0,94577.0,0.10429976]
[1736390390312,0.00513526,94578.0,94577.0,0.10429976]
[1736390391077,0.00713526,94578.0,94577.0,0.10429976]